Cogmind - Beta 11.1 @@@ ROGUE MODE // 2022.10.08 @ 11:08:23 Player: Andru7428 Result: Destroyed by G-34 Mercenary with Small Laser Performance ------------- Evolutions (0) 0 Regions Visited (4) 800 Robots Destroyed (23) 115 Value Destroyed (464) 464 Prototype IDs (4) 80 Alien Tech Used (0) 0 Bonus (0) 0 TOTAL SCORE: 1459 Bonus ------- None Cogmind --------- Core Integrity 0/250 Matter 284/300 Energy 95/100 System Corruption 0% Temperature Cool (6) Movement Rolling (90) Location -9/Mines Parts ------- > --- POWER (1) -------- (None) > --- PROPULSION (2) --- Armored Wheel Armored Wheel > --- UTILITY (2) ------ Medium Storage Unit Seismic Detector > --- WEAPON (2) ------- Medium Laser Makeshift Axe > --- INVENTORY (10) --- Armored Wheel Armored Wheel Large Storage Unit Rocket Launcher Rocket Launcher Peak State ------------ > --- POWER ------------ Light Ion Engine > --- PROPULSION ------- Armored Wheel Armored Wheel > --- UTILITY ---------- Medium Storage Unit Seismic Detector > --- WEAPON ----------- Medium Laser Makeshift Axe > --- INVENTORY -------- Armored Wheel Armored Wheel Large Storage Unit Rocket Launcher Rocket Launcher [Rating: 12] Favorites ----------- Power Light Ion Engine Engine Light Ion Engine Propulsion Armored Wheel Leg Aluminum Leg Wheel Armored Wheel Utility Seismic Detector Device Seismic Detector Storage Medium Storage Unit Weapon Assault Rifle Energy Gun Medium Laser Ballistic Gun Assault Rifle Launcher Rocket Launcher Slashing Weapon Makeshift Axe Build | -11 -10 -10 -10 -9 ------- Run | Scr Mat Min Exi Min Slots Evolved . | . . . . . Power . | . . . . . Propulsion . | . . . . . Utility . | . . . . . Weapon . | . . . . . Parts Attached 21 | 7 6 3 . 5 Power 2 | 1 . . . 1 Engine 2 | 1 . . . 1 Core . | . . . . . Reactor . | . . . . . Propulsion 4 | 2 2 . . . Treads . | . . . . . Leg 2 | 2 . . . . Wheel 2 | . 2 . . . Hover . | . . . . . Flight . | . . . . . Utility 4 | 2 1 1 . . Device 2 | 1 . 1 . . Storage 2 | 1 1 . . . Processor . | . . . . . Hackware . | . . . . . Protection . | . . . . . Artifact . | . . . . . Weapon 11 | 2 3 2 . 4 Energy Gun 2 | 1 . . . 1 Energy Cannon . | . . . . . Ballistic Gun 4 | 1 2 1 . . Ballistic Cannon . | . . . . . Launcher 3 | . 1 1 . 1 Special Weapon . | . . . . . Impact Weapon . | . . . . . Slashing Weapon 2 | . . . . 2 Piercing Weapon . | . . . . . Special Melee Weapon . | . . . . . Unidentified Prototypes . | . . . . . Parts Lost 4 | . . . . 4 Power 2 | . . . . 2 Propulsion . | . . . . . Utility . | . . . . . Weapon 2 | . . . . 2 Highest Loss Streak 3 | . . . . 3 To Critical Strikes . | . . . . . Average Slot Usage (%) 99 | . 100 100 100 96 Engine 14 | . 14 14 14 14 Leg 1 | . 5 . . . Wheel 26 | . 22 28 28 28 Device 14 | . 14 14 14 14 Storage 14 | . 14 14 14 14 Energy Gun 3 | . 8 . . 5 Ballistic Gun 23 | . 18 28 28 15 Naked Turns . | . . . . . Heaviest Build 20 | 13 18 18 18 20 Greatest Support 24 | 20 24 24 24 24 Greatest Overweight (x) 1 | . 1 . . . Average Overweight (x) . | . . . . . Largest Inventory Capacity 10 | 8 10 10 10 10 Average Capacity 9 | 7 9 10 10 10 Most Carried 10 | 6 10 9 9 8 Average Carried 7 | 3 9 6 9 6 Final Capacity 10 | 8 10 10 10 10 Final Carried 10 | 5 10 9 9 5 Class Distribution -------------------- 100% | Mutant Dominant Class ---------------- Mutant | -10/Materials Mutant | -10/Mines Mutant | -10/Exiles Mutant | -9/Mines Resources | -11 -10 -10 -10 -9 ----------- Run | Scr Mat Min Exi Min Matter Collected 569 | 263 109 151 . 46 Remotely . | . . . . . Salvage Created 518 | 19 257 59 . 183 Parts 33 | 3 13 9 . 8 Haulers Intercepted . | . . . . . Recyclers Shooed . | . . . . . Parts Field Recycled . | . . . . . Retrieved Matter . | . . . . . Parts Self-Destructed . | . . . . . Prevented . | . . . . . Kills | -11 -10 -10 -10 -9 ------- Run | Scr Mat Min Exi Min Combat Hostiles Destroyed 18 | . 8 3 . 7 Melee 3 | . . . . 3 Guns 8 | . 7 1 . . AOE 7 | . 1 2 . 4 Classes Destroyed 7 | 1 2 . . 4 Worker 1 | . . . . 1 Tunneler 3 | 1 . 2 . . Recycler 1 | . . . . 1 Swarmer 10 | . 3 3 . 4 Grunt 5 | . 5 . . . Duelist 1 | . . . . 1 Demolisher 2 | . . . . 2 Best Kill Streak 9 | 1 3 3 . 9 Combat Bots Only 5 | . 3 3 . 5 Max Kills in Single Turn 4 | 1 2 2 . 4 Gunslinging 1 | . 1 . . . Exploded 4 | . 1 2 . 4 Melee 1 | . . . . 1 Uniques/NPCs Destroyed . | . . . . . Combat | -11 -10 -10 -10 -9 -------- Run | Scr Mat Min Exi Min Damage Taken 842 | . 326 41 . 475 Core 260 | . 55 . . 205 Absorbed by Shields . | . . . . . Core Remaining (%) 100 | 100 . . . . Volleys Fired 33 | 1 24 6 . 2 Largest 2 | 2 2 2 . 1 Hottest 70 | 70 70 40 . 33 Shots Fired 60 | 2 45 11 . 2 Gun 54 | 2 42 10 . . Cannon . | . . . . . Launcher 6 | . 3 1 . 2 Special . | . . . . . Kinetic 44 | 1 33 10 . . Thermal 10 | 1 9 . . . Explosive 6 | . 3 1 . 2 Electromagnetic . | . . . . . Robot Hit Streak 6 | 1 6 2 . 2 Robot Miss Streak 3 | . 3 2 . 1 Penetration Max . | . . . . . Secondary Targets 1 | . 1 . . . Max Gunslinging Chain 1 | . 1 . . . Shots Hit Robots 47 | 1 30 4 . 12 Core Hits 31 | 1 16 5 . 9 Critical Kills . | . . . . . Critical Parts Destroyed . | . . . . . Critical Strikes . | . . . . . Melee Attacks 12 | . . . . 12 Impact . | . . . . . Slashing 12 | . . . . 12 Piercing . | . . . . . Sneak Attacks 3 | . . . . 3 Combat Hostiles . | . . . . . Follow-up Attacks . | . . . . . Damage Inflicted 1428 | 14 496 176 . 742 Guns 455 | 14 394 47 . . Cannons . | . . . . . Explosions 479 | . 98 129 . 252 Melee 490 | . . . . 490 Ramming 4 | . 4 . . . Kinetic 366 | 14 305 47 . . Thermal 89 | . 89 . . . Explosive 479 | . 98 129 . 252 Electromagnetic . | . . . . . Impact . | . . . . . Slashing 490 | . . . . 490 Piercing . | . . . . . Highest Corruption . | . . . . . Average Corruption . | . . . . . Corruption Purged . | . . . . . Corruption Blocked . | . . . . . Overload Shots . | . . . . . Overflow Damage 203 | . 20 1 . 182 Projectiles . | . . . . . Explosions 21 | . 20 1 . . Melee 182 | . . . . 182 Knockbacks . | . . . . . Impact . | . . . . . Kinetic . | . . . . . Secondary . | . . . . . Self-Inflicted Damage 66 | . 19 19 . 28 Shots 3 | . 1 1 . 1 Rammed 1 | . 1 . . . Targets Rammed 1 | . 1 . . . Kicked . | . . . . . Crushed . | . . . . . Highest Temperature 75 | 9 75 . . 2 Average Temperature 23 | 6 25 . . 2 Received Heat Transfer 165 | . 129 . . 36 Siege Activations . | . . . . . Robots Corrupted . | . . . . . Combat Hostiles . | . . . . . Parts Fried . | . . . . . Impact Corruptions . | . . . . . Robots Melted . | . . . . . Combat Hostiles . | . . . . . Parts Melted . | . . . . . Heat Transferred 259 | . 259 . . . Parts Sabotaged . | . . . . . Parts Stolen . | . . . . . Parts Stripped . | . . . . . Power Chain Reactions . | . . . . . Missiles Intercepted . | . . . . . Alert | -11 -10 -10 -10 -9 ------- Run | Scr Mat Min Exi Min Peak Influence 340 | 5 340 245 . 198 Initial 132 | . 3 132 . . Average 142 | . 174 188 . 35 Maximum Alert Level 1 | . 1 1 . . Low Security (%) 61 | 100 51 46 . 100 Level 1 38 | . 48 53 . . Level 2 . | . . . . . Level 3 . | . . . . . Level 4 . | . . . . . Level 5 . | . . . . . High Security . | . . . . . Max Security . | . . . . . Squads Dispatched . | . . . . . Investigation . | . . . . . Extermination . | . . . . . Reinforcement . | . . . . . Assault . | . . . . . Garrison . | . . . . . Intercept . | . . . . . Searches Triggered . | . . . . . Construction Impeded . | . . . . . Haulers Reinforced . | . . . . . Active Scanning Responses . | . . . . . Cargo Convoy Interrupts . | . . . . . Stealth | -11 -10 -10 -10 -9 --------- Run | Scr Mat Min Exi Min Distress Signals . | . . . . . Communications Jammed . | . . . . . Distress Signals . | . . . . . Times Spotted 33 | . 14 3 . 16 Peak Tracking Total 10 | . 3 3 . 10 Tactical Retreats 2 | . 2 . . . Traps | -11 -10 -10 -10 -9 ------- Run | Scr Mat Min Exi Min Traps Triggered . | . . . . . Indirectly . | . . . . . Trap Hack Attempts . | . . . . . Triggered . | . . . . . Disarmed . | . . . . . Reprogrammed . | . . . . . Reused . | . . . . . Traps Extracted . | . . . . . Installed . | . . . . . Triggered . | . . . . . Machines | -11 -10 -10 -10 -9 ---------- Run | Scr Mat Min Exi Min Machines Disabled . | . . . . . Max in Single Turn . | . . . . . Machines Sabotaged . | . . . . . Garrisons Compromised . | . . . . . Overloaded Fab Kills . | . . . . . Hacking | -11 -10 -10 -10 -9 --------- Run | Scr Mat Min Exi Min Machines Accessed 5 | . 4 . 1 . Terminals 4 | . 4 . . . Fabricators . | . . . . . Repair Stations . | . . . . . Recycling Units . | . . . . . Scanalyzers . | . . . . . Garrison Access . | . . . . . Total Hacks 16 | . 15 . 1 . Successful 7 | . 6 . 1 . Failed 8 | . 8 . . . Catastrophic . | . . . . . Database Lockouts 1 | . 1 . . . Manual 8 | . 8 . . . Terminals 15 | . 15 . . . Fabricators . | . . . . . Repair Stations . | . . . . . Recycling Units . | . . . . . Scanalyzers . | . . . . . Garrison Access . | . . . . . Terminal Hacks 6 | . 5 . 1 . Record 1 | . . . 1 . Robot Analysis 1 | . 1 . . . Prototype ID Bank 2 | . 2 . . . Locate Traps 2 | . 2 . . . Fabricator Hacks . | . . . . . Repair Station Hacks . | . . . . . Recycling Unit Hacks . | . . . . . Scanalyzer . | . . . . . Garrison Access Hacks . | . . . . . Unauthorized Hacks 1 | . 1 . . . Terminals 1 | . 1 . . . Botnet 1 | . 1 . . . Fabricators . | . . . . . Repair Stations . | . . . . . Recycling Units . | . . . . . Scanalyzers . | . . . . . Garrison Access . | . . . . . Data Cores Recovered . | . . . . . Used . | . . . . . Hacking Detections 4 | . 4 . . . Full Trace Events . | . . . . . Feedback Events . | . . . . . Feedback Blocked . | . . . . . Robot Schematics Acquired . | . . . . . Robots Built . | . . . . . Authchips . | . . . . . Time . | . . . . . Total Robot Build Rating . | . . . . . Part Schematics Acquired . | . . . . . Parts Built . | . . . . . Authchips . | . . . . . Time . | . . . . . Total Part Build Rating . | . . . . . Parts Repaired . | . . . . . Time . | . . . . . Parts Recycled . | . . . . . Recycled Matter . | . . . . . Retrieved Matter . | . . . . . Retrieved Components . | . . . . . Parts Scanalyzed . | . . . . . Part Schematics Acquired . | . . . . . Parts Damaged . | . . . . . Bothacking | -11 -10 -10 -10 -9 ------------ Run | Scr Mat Min Exi Min Used RIF Installer . | . . . . . Robots Hacked . | . . . . . Non-combat . | . . . . . Combat . | . . . . . Robot Hacks Applied . | . . . . . Relay Couplers Released . | . . . . . Fabnet Peak Effective % . | . . . . . Robots Rewired . | . . . . . Allies Hacked . | . . . . . Hacks Repelled . | . . . . . Allies | -11 -10 -10 -10 -9 -------- Run | Scr Mat Min Exi Min Total Allies . | . . . . . Largest Group . | . . . . . Highest-Rated Group . | . . . . . Highest-Rated Ally . | . . . . . Total Orders . | . . . . . Ally Attacks . | . . . . . Total Damage . | . . . . . Kills . | . . . . . Allies Corrupted . | . . . . . Allies Melted . | . . . . . Intel | -11 -10 -10 -10 -9 ------- Run | Scr Mat Min Exi Min Robot Analysis Total 1 | . 1 . . . Derelict Logs Recovered . | . . . . . Drone Launches . | . . . . . Drone Recoveries . | . . . . . Exploration | -11 -10 -10 -10 -9 ------------- Run | Scr Mat Min Exi Min Turns Passed 1004 | 78 309 357 117 143 Spaces Moved 874 | 52 205 365 130 122 Core 4 | 4 . . . . Treads . | . . . . . Legs 86 | 48 38 . . . Wheels 784 | . 167 365 130 122 Hover . | . . . . . Flight . | . . . . . Fastest Speed 50 | 50 90 90 90 90 Average Speed 92 | 114 95 90 90 90 Slowest Speed 120 | 120 120 90 90 90 Overloaded Moves . | . . . . . Propulsion Burnouts . | . . . . . Robots Hopped . | . . . . . Cave-ins Triggered . | . . . . . Exploration Rate (%) 39 | 4 40 70 49 32 Regions Visited 4 Branch Regions 3 Pre-discovered Areas 1 | . . . 1 . Known Exits Taken . | . . . . . Unknown Exits Taken 4 | 1 1 1 1 . Scrap Searched 3 | . . 3 . . Spaces Dug . | . . . . . Terrain Destroyed 54 | . 26 11 . 17 Melee . | . . . . . Projectile . | . . . . . AOE 54 | . 26 11 . 17 Terrain Rammed . | . . . . . Walls Destroyed . | . . . . . Machines Disabled . | . . . . . Actions | -11 -10 -10 -10 -9 --------- Run | Scr Mat Min Exi Min Total 993 | 65 274 383 129 142 Wait 28 | . 26 2 . . Move 870 | 51 204 364 129 122 Hop . | . . . . . Pick Up 15 | 6 6 3 . . Fast Attach 9 | 6 3 . . . Attach 4 | 1 . . . 3 Detach 2 | . 2 . . . Swap 8 | . 3 3 . 2 Drop 11 | . 5 5 . 1 Fire 33 | 1 24 6 . 2 Melee 12 | . . . . 12 Ram 1 | . 1 . . . Kick . | . . . . . Crush . | . . . . . Escape Stasis . | . . . . . Rewire . | . . . . . Trap . | . . . . . Miscellaneous . | . . . . . Route ------- -11/Scrapyard -10/Materials -10/Mines (discovered 2 exits: [*Mat] / *Exi) -10/Exiles (discovered 2 exits: [*Min x2]) -9/Mines History --------- Turn | Location | Event 3 | -11/Scrapyard | Discovered new exit (range 15) 79 | -11/Scrapyard | Entered Materials 204 | -10/Materials | Discovered new exit (range 7) 296 | -10/Materials | Central database locked down 312 | -10/Materials | Build established: Mutant 388 | -10/Materials | Entered Mines 435 | -10/Mines | A weapon hastily lodged in a ceiling crevice suddenly fell to the ground 497 | -10/Mines | Received a Rocket Launcher from a helpful Derelict 554 | -10/Mines | Discovered new exit (range 8) 741 | -10/Mines | Deemed a non-threat by the Exiles lab entrance 742 | -10/Mines | Discovered new exit (range 5) 745 | -10/Mines | Entered Exiles 757 | -10/Exiles | Discovered new exit (range 15) 768 | -10/Exiles | Met 8R-AWN 782 | -10/Exiles | Met EX-HEX 818 | -10/Exiles | Met EX-DEC 825 | -10/Exiles | Learned location of Zion (-7) 850 | -10/Exiles | Discovered new exit (range 14) 862 | -10/Exiles | Entered Mines 897 | -9/Mines | Assembled infested the area 902 | -9/Mines | Assisted by a Guerilla fighting off Assembled 953 | -9/Mines | Core integrity fell below 50% 981 | -9/Mines | Lost 3 parts (1p2w) 1002 | -9/Mines | Core integrity fell below 20% 1005 | -9/Mines | Destroyed by G-34 Mercenary with Small Laser Last Messages --------------- 00973_ Destroyed Wheel. 00974_ U-05 Engineer lays Concrete. 00975_ Sneak attack on K-01 Serf. 00975_ Destroyed Lgt. Ion Engine. 00975_ K-01 Serf destroyed. 00975_ U-05 Engineer lays Concrete. 00977_ Acquired 24 matter. 00977_ U-05 Engineer lays Concrete. 00980_ Sneak attack on R-06 Scavenger. 00980_ Destroyed Com. Wheel. 00980_ Destroyed Lgt. Ion Engine. 00982_ Destroyed Com. Wheel. 00982_ R-06 Scavenger destroyed. 00984_ Acquired 1 matter. 00986_ Acquired 10 matter. 00987_ S-10 Pest destroyed. 00988_ Acquired 11 matter. 00995_ The unstable cave ceiling collapses. 01003_ Lgt. Ion Engine destroyed. 01005_ L-31 Rogue destroyed. Map ----- +----------------------------------------------------+ | ????????????????????????????????????????????????? | | ????????????????????????????????????????????????? | | ????????????????????????????????????????????????? | | ????????????????????????????????????????????????? | | ????????????????????????????????????????????????? | | ??????????????????????? ##??????????????????????? | | ??????????????????????? ??????????????????????? | | ??????????????????????? ??????????????????????? | | ??????????????????????? ??????????????????????? | | ???????????????????????%%%??????????????????????? | | ??????????????????????? =??????????????????????? | | ??????????????????????? ??????????????????????? | | ???????????????????????= ??????????????????????? | | ??????????????????????? ??????????????????????? | | ???????????????????????# #?###??????????????????? | | ???????????????????????# #?# ??????????????????? | | ???????????????????????# #?# #???????????????#### | | ???????????????????????# #?# ####?????????#### | | ???????????????????????# ### ##?????#### ## | | ???????????????????????#! #?????## # | | ???????????????????????#%## #????## | | ???????????????????????#!## ###### # | | ??????????????????????## #### ## # | | ????????????????####### ### | | ???????????????" """ ##?## # | | ???????????????" """ /@ #??# # | | ???????????????" """ %* ### ## ## | | ?????????????? g #?## #######? | | ???????????? # # #??#### ####??????? | | ???????????# T#### #?????# #?????????? | | ???????????#############???? #?????# #?????????? | | ?????????????????????????????#?????# #?????????? | | ?????????????????????????##????????# #?????????? | | ?????????????????????????# ??????# #?????????? | | ????????????????????????## ##??# #?????????? | | ????????????????????????# ## #?????????? | | ????????????????????????# ####??????? | | ??????????????????????????""" ##?????? | | ??????????????????????????""" ## ! #?????? | | ???????????????????????????????## ## #?????? | | ????????????????????????????????###?## ##?????? | | ?????????????????????????????????????#####??????? | | ????????????????????????????????????????????????? | | ????????????????????????????????????????????????? | | ????????????????????????????????????????????????? | | ????????????????????????????????????????????????? | | ????????????????????????????????????????????????? | | ????????????????????????????????????????????????? | | ????????????????????????????????????????????????? | | ????????????????????????????????????????????????? | +----------------------------------------------------+ Best States ------------- Heat Dissipation 25 Energy Generation 10 Energy Capacity 125 Matter Stores 300 Matter Capacity 300 Sight Range 16 Terrain Scan Density 10 Evasion (%) 55 Item Schematics ----------------- None Robot Schematics ------------------ None Fabricated ------------ Nothing Alien Tech Used ----------------- None Achievements -------------- None Challenges ------------ None Game ------ Seed FlakElectronArchive Manual? 0 Play Time 00:10:49 Cumulative 167.1 hours Start 2022.10.08 @ 10:41:42 End 2022.10.08 @ 11:08:23 Sessions 1 Manual Loads 0 Difficulty Rogue Special Mode None Game No. 124 Rogue 124 Adventurer 0 Explorer 0 Win Type - Total 3 Types 3/0/0/0/0/0/0/0/0 Lore% 63 Gallery% 71 Achievement% 59 Wizard Run 0 Options --------- ASCII 0 Keyboard 1 Movement Numpad Keybinds 0 Fullscreen 2 Font 18/Smallcaps Map View 76x50 Tactical HUD 1 Map Filters NONE Filters NONE Steam 1 RUN: 95bf1a23-ef1e-495c-96be-8f4bcfd7d60b